bitfinex/quotes_BTCUSD_20240611
["timestamp","ask_amount","ask_price","bid_price","bid_amount"]
[1718072864272,0.5878,68038.0,68037.0,0.31429793]
[1718072864498,0.5958,68038.0,68037.0,0.41529793]
[1718072864959,0.5958,68038.0,68037.0,0.41629793]
[1718072865464,0.5878,68038.0,68037.0,0.42529793]
[1718072865691,0.5878,68038.0,68037.0,0.41429793]
[1718072865895,0.5878,68038.0,68037.0,0.42429793]
[1718072866154,0.5878,68038.0,68037.0,0.41429793]
[1718072866402,0.5878,68038.0,68037.0,0.42429793]
[1718072866630,0.5878,68038.0,68037.0,0.48093146]
[1718072866870,0.5878,68038.0,68037.0,0.43429793]
[1718072867092,0.00859,68057.0,68056.0,0.156937]
[1718072867400,0.00859,68057.0,68056.0,0.146937]
[1718072867565,1.39954,68057.0,68056.0,0.146937]
[1718072867777,1.40954,68057.0,68056.0,0.146937]
[1718072868038,1.40954,68057.0,68050.0,0.14695]
[1718072868267,1.47169996,68057.0,68051.0,0.1]
[1718072868475,1.47169996,68057.0,68055.0,0.146938]
[1718072868684,1.39954,68057.0,68055.0,0.146938]
[1718072869115,0.60534,68057.0,68056.0,0.29225693]
[1718072869328,0.60534,68057.0,68056.0,0.157937]
[1718072869329,0.60934,68057.0,68056.0,0.157937]
[1718072869549,0.60934,68057.0,68056.0,0.541812]
[1718072869768,0.60934,68057.0,68056.0,0.68613193]
[1718072869985,0.60534,68057.0,68056.0,0.70913193]
[1718072870204,0.59634,68057.0,68056.0,0.70813193]
[1718072870554,0.59734,68057.0,68056.0,0.70813193]
[1718072870934,0.59634,68057.0,68056.0,0.70813193]
[1718072871140,0.59634,68057.0,68056.0,0.71813193]
[1718072871341,0.60034,68057.0,68056.0,0.70913193]
[1718072871541,0.60034,68057.0,68056.0,0.39125693]
[1718072871751,0.60034,68057.0,68056.0,0.70813193]
[1718072871964,0.60034,68057.0,68056.0,0.89837093]
[1718072872140,0.60034,68057.0,68056.0,0.84523193]
[1718072872342,0.60034,68057.0,68056.0,0.72913193]
[1718072872558,0.59634,68057.0,68056.0,0.72913193]
[1718072872773,0.59734,68057.0,68056.0,0.96360393]
[1718072872995,0.59734,68057.0,68056.0,0.72913193]
[1718072873201,0.59734,68057.0,68056.0,0.72813193]
[1718072873408,0.59734,68057.0,68056.0,0.91046493]
[1718072873624,0.59834,68057.0,68056.0,0.72813193]
[1718072873848,0.59834,68057.0,68056.0,1.02813193]
[1718072874271,0.59834,68057.0,68056.0,2.49581693]
[1718072874486,0.59834,68057.0,68056.0,1.02200693]
[1718072874694,0.59734,68057.0,68056.0,0.72015524]
[1718072874904,0.59634,68057.0,68056.0,0.28825005]
[1718072875115,0.59634,68057.0,68056.0,0.246937]
[1718072875331,0.59634,68057.0,68056.0,0.252937]
[1718072876368,0.59634,68057.0,68056.0,0.246937]
[1718072876774,0.59634,68057.0,68056.0,0.248937]
[1718072877221,0.59634,68057.0,68056.0,0.39125693]
[1718072877398,0.59634,68057.0,68056.0,0.40125693]
[1718072877399,0.59734,68057.0,68056.0,0.40125693]
[1718072877628,0.59734,68057.0,68056.0,0.42425693]
[1718072877974,0.60134,68057.0,68056.0,0.43425693]
[1718072878167,0.60034,68057.0,68056.0,0.43425693]
[1718072878576,0.60134,68057.0,68056.0,0.72813193]
[1718072878980,0.59734,68057.0,68056.0,0.72813193]
[1718072879181,0.59734,68057.0,68056.0,0.540812]
[1718072879331,0.59734,68057.0,68056.0,0.70513193]
[1718072879332,0.60134,68057.0,68056.0,0.70513193]
[1718072879740,0.59734,68057.0,68056.0,0.70513193]
[1718072879942,0.59634,68057.0,68056.0,0.70513193]
[1718072880169,0.59734,68057.0,68056.0,0.246937]
[1718072880372,0.59734,68057.0,68056.0,0.256937]
[1718072880531,0.59734,68057.0,68056.0,0.246937]
[1718072880743,0.59734,68057.0,68056.0,0.248937]
[1718072881179,0.59634,68057.0,68056.0,0.149937]
[1718072881388,1.38854,68057.0,68056.0,0.005]
[1718072881595,1.38854,68057.0,68029.0,0.01]
[1718072881596,0.01,68048.0,68042.0,0.146966]
[1718072881798,0.07215996,68044.0,68042.0,0.146966]
[1718072882020,0.58775,68043.0,68042.0,0.146966]
[1718072883002,0.58775,68043.0,68042.0,0.29128593]
[1718072883552,0.58775,68043.0,68042.0,0.146966]
[1718072884162,0.58775,68043.0,68042.0,0.246966]
[1718072884372,0.58775,68043.0,68042.0,0.248966]
[1718072884733,0.59475,68043.0,68042.0,0.39228593]
[1718072884938,0.59475,68043.0,68042.0,0.247966]
[1718072885146,0.58875,68043.0,68042.0,0.246966]
[1718072885582,0.59075,68043.0,68042.0,0.246966]
[1718072885968,0.58775,68043.0,68042.0,0.246966]
[1718072886374,0.59575,68043.0,68042.0,0.247966]
[1718072886575,0.59575,68043.0,68042.0,0.257966]
[1718072886788,0.59575,68043.0,68042.0,0.247966]
[1718072886949,0.59775,68043.0,68042.0,0.247966]
[1718072887363,0.59575,68043.0,68042.0,0.247966]
[1718072887923,0.59875,68043.0,68042.0,0.248966]
[1718072888435,0.57875,68043.0,68042.0,0.102]
[1718072888837,0.57075,68043.0,68042.0,0.101]
[1718072889247,1.37825,68043.0,68042.0,0.102]
[1718072889865,1.37525,68043.0,68042.0,0.001]
[1718072890088,1.37525,68043.0,68042.0,0.002]
[1718072890089,1.38225,68043.0,68042.0,0.002]
[1718072890307,1.38225,68043.0,68042.0,0.148968]
[1718072890516,1.38225,68043.0,68042.0,0.248968]
[1718072891376,1.38225,68043.0,68042.0,0.24890861]
[1718072894484,1.36825,68043.0,68042.0,0.246968]
[1718072894909,0.01,68042.0,68027.0,0.01725774]
[1718072895128,0.63990996,68041.0,68033.0,0.146985]
[1718072895705,0.01,68039.0,68033.0,0.146985]
[1718072895919,0.62990996,68041.0,68033.0,0.146985]
[1718072895920,0.07215996,68034.0,68033.0,0.146985]
[1718072896122,0.62990996,68034.0,68017.0,0.01]
[1718072896288,0.62990996,68034.0,68029.0,0.146995]
[1718072896623,0.01,68033.0,68024.0,0.147006]
[1718072896882,0.01,68033.0,68023.0,0.147008]
[1718072896883,0.07215996,68027.0,68023.0,0.147008]
[1718072897099,0.07215996,68027.0,68017.0,0.04901454]
[1718072897100,0.4683,68025.0,68017.0,0.04901454]
[1718072897305,0.55775,68024.0,68022.0,0.147011]
[1718072897728,0.55775,68024.0,68023.0,0.147009]
[1718072897953,0.55775,68024.0,68023.0,0.30132893]
[1718072898158,0.55775,68024.0,68023.0,0.30232893]
[1718072898606,0.55775,68024.0,68023.0,0.42532893]
[1718072898733,0.55775,68024.0,68023.0,0.42432893]
[1718072898936,0.55775,68024.0,68023.0,0.247009]
[1718072898937,0.56475,68024.0,68023.0,0.247009]
[1718072899142,0.56475,68024.0,68023.0,0.147009]
[1718072899352,0.7867,68021.0,68011.0,0.147032]
[1718072899582,0.07215996,68015.0,68010.0,0.06710714]
[1718072899738,0.55775,68014.0,68010.0,0.06710714]
[1718072899938,0.55775,68014.0,68010.0,0.01797679]
[1718072900142,0.55775,68014.0,68013.0,0.14703]
[1718072900596,0.55775,68014.0,68013.0,0.31134993]
[1718072900970,0.55775,68014.0,68013.0,0.70541093]
[1718072901211,0.55775,68014.0,68013.0,0.8070396]
[1718072901450,0.55775,68014.0,68013.0,0.80703687]
[1718072901656,0.56175,68014.0,68013.0,1.00703687]
[1718072901867,0.56175,68014.0,68013.0,1.20869887]
[1718072901868,0.56475,68014.0,68013.0,1.20869887]
[1718072902287,0.56075,68014.0,68013.0,1.60275987]
[1718072902707,0.56075,68014.0,68013.0,0.99869887]
[1718072902931,0.56075,68014.0,68013.0,0.79703687]
[1718072903147,0.55775,68014.0,68013.0,0.32565594]
[1718072903351,0.55775,68014.0,68013.0,0.24703]
[1718072903560,0.55775,68014.0,68013.0,0.25203]
[1718072903786,0.55775,68014.0,68013.0,0.14803]
[1718072904249,0.5,68025.0,68013.0,0.14803]
[1718072904250,0.5,68038.0,68013.0,0.14831993]
[1718072904494,0.06307846,68076.0,68069.0,0.3187]
[1718072904703,0.12646671,68078.0,68076.0,0.146894]
[1718072904704,0.00030978,68078.0,68076.0,0.146894]
[1718072904970,0.220316,68075.0,68074.0,0.01]
[1718072905184,0.220316,68075.0,68074.0,0.146898]
[1718072905390,0.220316,68075.0,68074.0,0.29064879]
[1718072905840,0.220316,68075.0,68074.0,0.30064879]
[1718072906469,0.220316,68075.0,68074.0,0.42421793]
[1718072906684,0.220316,68075.0,68074.0,0.45241205]
[1718072907128,0.220316,68075.0,68074.0,0.246898]
[1718072907562,0.220316,68075.0,68074.0,0.250898]
[1718072907782,0.986816,68075.0,68074.0,0.008]
[1718072908213,0.986816,68075.0,68074.0,0.004]
[1718072908449,1.14113593,68075.0,68074.0,0.004]
[1718072908660,1.13113593,68075.0,68074.0,0.008]
[1718072908875,1.15113593,68075.0,68074.0,0.008]
[1718072909321,1.15113593,68075.0,68074.0,0.004]
[1718072909554,1.13113593,68075.0,68074.0,0.004]
[1718072909760,1.13113593,68075.0,68074.0,0.008]
[1718072909977,0.5,68072.0,68067.0,0.146913]
[1718072910209,0.220316,68071.0,68067.0,0.146913]
[1718072910635,0.220316,68071.0,68070.0,0.146907]
[1718072910843,0.220316,68071.0,68070.0,0.246907]
[1718072912105,0.222316,68071.0,68070.0,0.246907]
[1718072912552,0.222316,68071.0,68070.0,0.40122693]
[1718072912764,0.222316,68071.0,68070.0,1.17298193]
[1718072912977,0.222316,68071.0,68070.0,1.26638366]
[1718072913209,0.222316,68071.0,68070.0,2.39471318]
[1718072913210,0.220316,68071.0,68070.0,2.39471318]
[1718072913464,0.00124,68083.0,68082.0,0.915244]
[1718072913660,0.20086,68100.0,68099.0,0.146845]
[1718072913867,0.20086,68100.0,68083.0,0.07215996]
[1718072914076,0.58744,68099.0,68084.0,0.46106993]
[1718072914286,0.58744,68099.0,68086.0,0.049766]
[1718072914500,0.58744,68099.0,68087.0,0.26186942]
[1718072914721,0.58744,68099.0,68088.0,0.19454949]
[1718072914928,0.58744,68099.0,68089.0,0.26186942]
[1718072915140,0.58744,68099.0,68090.0,0.1]
[1718072915370,0.58744,68099.0,68098.0,0.146847]
[1718072915574,0.58744,68099.0,68098.0,0.39116693]
[1718072915810,0.58744,68099.0,68098.0,0.45972145]
[1718072916514,0.87959996,68099.0,68098.0,0.246847]
[1718072916736,0.87959996,68099.0,68098.0,0.146847]
[1718072916947,0.2,68087.0,68086.0,0.049766]
[1718072917162,0.2,68090.0,68088.0,0.146868]
[1718072917365,0.440572,68087.0,68077.0,0.1]
[1718072917575,0.440572,68087.0,68086.0,0.146873]
[1718072917796,0.440572,68087.0,68086.0,0.39119293]
[1718072919287,0.440572,68087.0,68086.0,0.41419293]
[1718072919497,0.440572,68087.0,68086.0,0.45376887]
[1718072919671,0.440572,68087.0,68086.0,0.41819293]
[1718072919884,0.440572,68087.0,68086.0,0.42219293]
[1718072920714,0.440572,68087.0,68086.0,0.42619293]
[1718072921133,0.440572,68087.0,68086.0,0.42219293]
[1718072921341,0.440572,68087.0,68086.0,0.71593893]
[1718072921548,0.440572,68087.0,68086.0,0.72393893]
[1718072922169,0.440572,68087.0,68086.0,1.01768493]
[1718072922383,0.440572,68087.0,68086.0,2.02948493]
[1718072922596,0.440572,68087.0,68086.0,2.28408493]
[1718072922843,0.440572,68087.0,68086.0,2.40784513]
[1718072923044,0.440572,68087.0,68086.0,2.01348493]
[1718072923442,0.440572,68087.0,68086.0,2.13304493]
[1718072923645,0.440572,68087.0,68086.0,2.39164493]
[1718072923847,0.440572,68087.0,68086.0,2.31252769]
[1718072924212,0.440572,68087.0,68086.0,3.73877793]
[1718072924429,0.440572,68087.0,68086.0,3.25277793]
[1718072924643,0.20086,68100.0,68098.0,0.1]
[1718072924866,0.18597,68100.0,68099.0,1.31395493]
[1718072925079,0.18597,68100.0,68099.0,0.64578436]
[1718072925296,0.18597,68100.0,68099.0,0.60617493]
[1718072925297,0.75325,68100.0,68099.0,0.60617493]
[1718072925516,0.75325,68100.0,68099.0,1.33014493]
[1718072925727,0.75325,68100.0,68099.0,1.04670993]
[1718072926394,0.75325,68100.0,68099.0,1.26710993]
[1718072926609,0.75325,68100.0,68099.0,2.84764793]
[1718072926851,0.75325,68100.0,68099.0,2.39866293]
[1718072927072,0.73265,68100.0,68099.0,2.39866293]
[1718072927289,0.73265,68100.0,68099.0,2.39566293]
[1718072927500,0.73265,68100.0,68099.0,2.40266293]
[1718072927752,0.73265,68100.0,68099.0,2.55726293]
[1718072927971,0.68065,68100.0,68099.0,2.55426293]
[1718072928148,0.68065,68100.0,68099.0,2.84795293]
[1718072928582,0.64765,68100.0,68099.0,2.84795293]
[1718072928806,0.59765,68100.0,68099.0,2.84795293]
[1718072929011,0.59765,68100.0,68099.0,2.84395293]
[1718072929125,0.00086,68117.0,68099.0,2.70110793]
[1718072929338,0.00086,68117.0,68111.0,1.61297693]
[1718072929339,1e-08,68112.0,68111.0,1.61297693]
[1718072929539,0.00858,68126.0,68125.0,0.146788]
[1718072929759,0.317482,68112.0,68111.0,1.33455793]
[1718072930193,0.317482,68112.0,68111.0,1.73597693]
[1718072930431,0.283622,68112.0,68111.0,2.02961493]
[1718072930630,0.276292,68112.0,68111.0,2.02961493]
[1718072931006,0.276292,68112.0,68111.0,2.03261493]
[1718072931210,0.276292,68112.0,68111.0,1.18277693]
[1718072931498,0.276292,68112.0,68111.0,1.33737693]
[1718072931694,0.276292,68112.0,68111.0,1.86336793]
[1718072932329,0.276292,68112.0,68111.0,2.01796793]
[1718072932535,0.276292,68112.0,68111.0,2.31460593]
[1718072932536,0.243292,68112.0,68111.0,2.31460593]
[1718072932805,0.00857,68140.0,68111.0,2.31460593]
[1718072932806,0.00857,68140.0,68139.0,0.146758]
[1718072933043,0.1,68136.0,68124.0,0.29358]
[1718072933296,0.1,68136.0,68125.0,0.26731993]
[1718072933523,0.58711,68135.0,68125.0,0.26731993]
[1718072934204,1.00711,68135.0,68134.0,0.146769]
[1718072935594,0.00859,68169.0,68167.0,0.146698]
[1718072935842,0.12525262,68195.0,68167.0,0.146698]
[1718072935843,0.06256108,68213.0,68212.0,0.146601]
[1718072936079,0.45630695,68231.0,68183.0,0.293327]
[1718072936080,0.5,68244.0,68223.0,0.146578]
[1718072936295,0.28210829,68213.0,68212.0,0.25629454]
[1718072936502,0.28210829,68213.0,68199.0,0.146628]
[1718072936503,0.1,68208.0,68199.0,0.146628]
[1718072936724,0.22,68205.0,68204.0,0.1]
[1718072936943,0.3015,68215.0,68188.0,0.146652]
[1718072936944,0.2,68193.0,68188.0,0.146652]
[1718072937162,0.12,68195.0,68188.0,0.146652]
[1718072937163,0.2785898,68192.0,68188.0,0.146652]
[1718072937611,0.1,68180.0,68179.0,0.04912553]
[1718072937865,0.32,68178.0,68177.0,0.09114823]
[1718072938081,0.1,68165.0,68161.0,0.14671]
[1718072938294,0.1,68165.0,68152.0,0.14673]
[1718072938295,0.2,68162.0,68152.0,0.14673]
[1718072938525,0.1,68162.0,68155.0,0.146723]
[1718072938760,0.2785898,68161.0,68155.0,0.146723]
[1718072939001,0.2785898,68161.0,68159.0,0.146715]
[1718072939640,0.2785898,68161.0,68160.0,0.761288]
[1718072940296,0.2785898,68161.0,68160.0,0.63901593]
[1718072940509,0.2785898,68161.0,68160.0,0.26731993]
[1718072940972,0.27608258,68161.0,68160.0,0.36784893]
[1718072941189,0.27608258,68161.0,68160.0,0.11432029]
[1718072941503,0.27608258,68161.0,68160.0,0.25864022]
[1718072941750,0.27608258,68161.0,68160.0,0.26164022]
[1718072942004,0.37608258,68161.0,68160.0,0.11732029]
[1718072942471,0.27608258,68161.0,68160.0,0.11732029]
[1718072942935,0.27608258,68161.0,68160.0,0.11632029]
[1718072943236,0.27608258,68161.0,68160.0,0.11432029]
[1718072943521,0.27608258,68161.0,68160.0,0.01732029]
[1718072943522,0.97364254,68161.0,68160.0,0.01732029]
[1718072943713,0.97364254,68161.0,68148.0,0.2517775]
[1718072943714,0.32,68149.0,68148.0,0.2517775]
[1718072943935,0.59608258,68149.0,68148.0,0.2517775]
[1718072944156,0.27608258,68149.0,68148.0,0.2517775]
[1718072944378,0.59608258,68149.0,68148.0,0.2517775]
[1718072945036,0.2,68126.0,68125.0,0.146787]
[1718072945249,0.27608258,68126.0,68125.0,0.146787]
[1718072945461,0.21,68161.0,68160.0,12.64073753]
[1718072945668,0.51,68161.0,68160.0,10.23804002]
[1718072945880,1.29685,68161.0,68160.0,10.23804002]
[1718072946107,1.45145,68161.0,68160.0,10.1606573]
[1718072946331,1.09685,68161.0,68160.0,10.10191497]
[1718072946562,1.29685,68161.0,68160.0,10.10191497]
[1718072946788,1.54116993,68161.0,68160.0,10.03314347]
[1718072946992,1.57216993,68161.0,68160.0,10.03414347]
[1718072947196,1.74076993,68161.0,68160.0,10.03514347]
[1718072947416,1.81685165,68161.0,68160.0,9.91192786]
[1718072947633,1.81685165,68161.0,68160.0,8.30188883]
[1718072947634,2.33799691,68161.0,68160.0,8.30188883]
[1718072947875,2.02029691,68161.0,68160.0,8.21866085]
[1718072948078,2.06366691,68161.0,68160.0,8.03616208]
[1718072948521,2.06366691,68161.0,68160.0,6.36116753]
[1718072948745,2.18996976,68161.0,68160.0,3.32934047]
[1718072949405,2.17596976,68161.0,68160.0,3.32934047]
[1718072949650,2.18996976,68161.0,68160.0,3.32934047]
[1718072949859,2.07766691,68161.0,68160.0,3.32934047]
[1718072950286,2.04966691,68161.0,68160.0,3.32834047]
[1718072950513,2.06366691,68161.0,68160.0,3.32934047]
[1718072950922,2.06366691,68161.0,68160.0,3.32834047]
[1718072950923,2.04966691,68161.0,68160.0,3.32834047]
[1718072951141,2.06366691,68161.0,68160.0,3.32834047]
[1718072951359,2.20540039,68161.0,68160.0,3.32834047]
[1718072952859,2.19140039,68161.0,68160.0,3.32834047]
[1718072953277,2.20540039,68161.0,68160.0,3.32934047]
[1718072953708,2.17658258,68161.0,68160.0,3.32834047]
[1718072953926,2.19058258,68161.0,68160.0,3.32934047]
[1718072954138,2.20458258,68161.0,68160.0,3.32934047]
[1718072954392,2.19058258,68161.0,68160.0,3.32834047]
[1718072954602,2.17658258,68161.0,68160.0,3.32834047]
[1718072954809,2.04966691,68161.0,68160.0,3.32834047]
[1718072955034,2.35462391,68161.0,68160.0,1.94441563]
[1718072955248,2.24797072,68161.0,68160.0,1.15486291]
[1718072955463,4.66268586,68161.0,68160.0,0.68471782]
[1718072955688,3.99381323,68161.0,68160.0,0.65262782]
[1718072955895,1.491376,68131.0,68130.0,0.43295979]
[1718072956105,2.02147765,68131.0,68130.0,0.43295979]
[1718072956321,0.01,68113.0,68112.0,0.43295979]
[1718072956528,0.74116993,68113.0,68112.0,0.43295979]
[1718072956740,0.01,68099.0,68094.0,8e-05]
[1718072956958,0.59685,68098.0,68095.0,0.05424668]
[1718072957173,0.58685,68098.0,68095.0,0.05424668]
[1718072957377,0.58685,68098.0,68089.0,0.497]
[1718072957600,0.58685,68098.0,68090.0,0.01]
[1718072957815,0.58685,68098.0,68092.0,0.1]
[1718072958289,0.58685,68098.0,68094.0,0.01]
[1718072958733,0.58685,68098.0,68097.0,0.18215996]
[1718072958734,0.16013698,68098.0,68097.0,0.18215996]
[1718072958963,0.16013698,68098.0,68097.0,0.48481298]
[1718072959430,0.0493707,68109.0,68108.0,0.01]
[1718072959898,0.00124359,68130.0,68108.0,0.01]
[1718072960119,0.5773,68109.0,68107.0,0.1]
[1718072960319,0.5773,68109.0,68108.0,0.02]
[1718072960489,0.5773,68109.0,68108.0,0.12]
[1718072960698,0.5773,68109.0,68098.0,0.1]
[1718072960935,0.00124359,68108.0,68098.0,0.1]
[1718072961156,0.5783,68109.0,68108.0,0.002]
[1718072961357,0.5753,68107.0,68098.0,0.1]
[1718072962187,0.00124359,68106.0,68098.0,0.1]
[1718072962414,0.00124359,68106.0,68099.0,0.10675331]
[1718072962415,0.01,68101.0,68099.0,0.10675331]
[1718072962643,0.01,68101.0,68089.0,0.146865]
[1718072962644,0.01,68099.0,68088.0,0.000946]
[1718072962836,0.5753,68098.0,68088.0,0.000946]
[1718072963046,0.5853,68098.0,68088.0,0.000946]
[1718072963194,0.00124359,68097.0,68088.0,0.000946]
[1718072963396,0.01,68095.0,68088.0,0.000946]
[1718072963595,0.5753,68094.0,68088.0,0.000946]
[1718072964853,0.5753,68094.0,68091.0,0.0204643]
[1718072965223,0.5753,68094.0,68091.0,0.009427]
[1718072965443,0.01,68092.0,68091.0,0.010427]
[1718072965655,0.01,68092.0,68091.0,0.009427]
[1718072965871,0.5953,68092.0,68091.0,0.009427]
[1718072966083,0.5953,68092.0,68091.0,0.010427]
[1718072966294,0.73961993,68092.0,68091.0,0.010427]
[1718072966707,0.73961993,68092.0,68091.0,0.009427]
[1718072967091,0.74661993,68092.0,68091.0,0.009427]
[1718072967341,0.5823,68092.0,68091.0,0.009427]
[1718072967974,0.5933,68092.0,68091.0,0.009427]
[1718072968808,0.5933,68092.0,68091.0,0.0214643]
[1718072969018,0.5863,68092.0,68091.0,0.0214643]
[1718072969245,0.5753,68092.0,68091.0,0.0214643]
[1718072969413,0.5933,68092.0,68091.0,0.0214643]
[1718072969675,0.5933,68092.0,68091.0,1.17634623]
[1718072969676,0.5823,68092.0,68091.0,1.17634623]
[1718072969886,0.04908018,68113.0,68110.0,0.146821]
[1718072970109,0.04908018,68113.0,68094.0,0.293708]
[1718072970110,0.04908018,68113.0,68111.0,0.1615001]
[1718072970337,0.27287,68112.0,68111.0,0.2615001]
[1718072970551,0.27287,68112.0,68111.0,0.40582003]
[1718072970752,0.27287,68112.0,68111.0,0.98592003]
[1718072971161,0.27287,68112.0,68111.0,1.01892003]
[1718072971386,0.27287,68112.0,68111.0,1.00892003]
[1718072971593,0.27287,68112.0,68111.0,0.7416001]
[1718072971803,0.27287,68112.0,68111.0,0.8416001]
[1718072972015,0.27287,68112.0,68111.0,0.7416001]
[1718072972195,0.27287,68112.0,68111.0,0.8416001]
[1718072972401,0.27287,68112.0,68111.0,0.3615001]
[1718072972752,0.27287,68112.0,68111.0,0.3655001]
[1718072973147,0.27287,68112.0,68111.0,0.3665001]
[1718072973366,0.27287,68112.0,68111.0,0.3615001]
[1718072973571,0.27287,68112.0,68111.0,0.3655001]
[1718072973786,0.27287,68112.0,68111.0,0.3665001]
[1718072973997,0.27287,68112.0,68111.0,0.51082003]
[1718072974202,0.27287,68112.0,68111.0,0.50582003]
[1718072974411,0.27287,68112.0,68111.0,0.3665001]
[1718072974645,0.27287,68112.0,68111.0,0.2196821]
[1718072974854,0.04976475,68126.0,68116.0,0.02]
[1718072975058,0.00124359,68125.0,68114.0,0.02]
[1718072975207,0.58843359,68125.0,68115.0,0.02396821]
[1718072976219,0.58843359,68125.0,68117.0,0.02]
[1718072976220,0.58719,68125.0,68117.0,0.02]
[1718072976413,0.58719,68125.0,68118.0,0.02]
[1718072976724,0.58719,68125.0,68121.0,0.07215996]
[1718072976927,0.58719,68125.0,68115.0,0.12396821]
[1718072976928,0.58719,68125.0,68123.0,0.02]
[1718072977150,0.58719,68125.0,68124.0,0.02]
[1718072977363,0.58719,68125.0,68124.0,0.10883956]
[1718072977563,0.2,68161.0,68124.0,0.10883956]
[1718072977564,0.43295979,68161.0,68140.0,0.02]
[1718072977789,0.058698,68156.0,68140.0,0.4928]
[1718072978027,0.00124359,68159.0,68148.0,0.146739]
[1718072978270,0.58694,68155.0,68150.0,0.02]
[1718072978503,0.58694,68155.0,68149.0,0.346736]
[1718072978955,0.58694,68155.0,68150.0,0.02]
[1718072979429,0.00124359,68154.0,68149.0,0.1]
[1718072979702,0.00124359,68154.0,68143.0,0.02]
[1718072979703,0.58694,68153.0,68144.0,0.146746]
[1718072979926,0.00124359,68152.0,68145.0,0.1]
[1718072980165,0.3213,68158.0,68149.0,0.001]
[1718072980166,0.58694,68151.0,68149.0,0.001]
[1718072980385,0.58694,68151.0,68145.0,0.1]
[1718072980386,0.00124359,68150.0,68145.0,0.1]
[1718072980633,0.73125993,68149.0,68140.0,0.1]
[1718072980861,0.73125993,68149.0,68139.0,0.4654]
[1718072981072,0.00124359,68148.0,68133.0,0.1]
[1718072981300,0.00124359,68148.0,68123.0,0.4654]
[1718072981301,0.6546,68142.0,68123.0,0.4654]
[1718072981533,0.45246352,68141.0,68126.0,0.43295979]
[1718072981761,1.03940352,68141.0,68120.0,0.02]
[1718072981990,0.1546,68140.0,68120.0,0.02]
[1718072982214,0.1546,68138.0,68120.0,0.166798]
[1718072982456,0.88710352,68137.0,68119.0,0.1]
[1718072982703,0.88710352,68137.0,68116.0,0.4854]
[1718072982921,0.88710352,68137.0,68115.0,0.467809]
[1718072982922,0.5,68133.0,68111.0,0.1]
[1718072983130,0.5,68133.0,68109.0,0.638121]
[1718072983131,0.73250352,68132.0,68120.0,0.003]
[1718072983555,0.2588,68131.0,68109.0,0.638121]
[1718072983762,0.73250352,68130.0,68119.0,0.007]
[1718072984177,0.73250352,68130.0,68119.0,0.004]
[1718072984386,0.73250352,68130.0,68120.0,0.003]
[1718072984814,0.73250352,68130.0,68128.0,0.07215996]
[1718072984815,0.58694,68130.0,68128.0,0.07215996]
[1718072985031,0.14556352,68129.0,68120.0,0.003]
[1718072985240,0.58694,68128.0,68120.0,0.003]
[1718072985455,0.14431993,68127.0,68120.0,0.003]
[1718072985669,0.5,68134.0,68125.0,0.02]
[1718072985670,0.58694,68126.0,68125.0,0.02]
[1718072985873,0.58694,68126.0,68125.0,0.4811]
[1718072986301,0.58694,68126.0,68125.0,0.5811]
[1718072987565,0.58694,68126.0,68125.0,0.5841]
[1718072987978,0.58694,68126.0,68125.0,0.9032]
[1718072988192,0.58694,68126.0,68125.0,0.9072]
[1718072989052,0.58694,68126.0,68125.0,2.9072]
[1718072989481,0.58694,68126.0,68125.0,2.9032]
[1718072989931,0.58694,68126.0,68125.0,2.9072]
[1718072990579,0.58694,68126.0,68125.0,3.049988]
[1718072990789,0.58694,68126.0,68125.0,2.249788]
[1718072991013,0.58694,68126.0,68125.0,2.107]
[1718072991654,0.58694,68126.0,68125.0,2.007]
[1718072992083,0.73125993,68126.0,68125.0,2.007]
[1718072992759,0.73125993,68126.0,68125.0,2.0]
[1718072993131,0.73125993,68126.0,68125.0,2.007]
[1718072993326,0.73125993,68126.0,68125.0,2.004]
[1718072993500,0.73125993,68126.0,68125.0,2.0]
[1718072993701,0.73925993,68126.0,68125.0,2.001]
[1718072994071,0.73825993,68126.0,68125.0,2.001]
[1718072994463,0.73825993,68126.0,68125.0,2.002]
[1718072994464,0.74725993,68126.0,68125.0,2.002]
[1718072994674,0.74025993,68126.0,68125.0,2.001]
[1718072994898,0.59594,68126.0,68125.0,2.001]
[1718072995310,0.59594,68126.0,68125.0,2.021]
[1718072995740,0.59594,68126.0,68125.0,2.001]
[1718072995948,0.59594,68126.0,68125.0,2.021]
[1718072996168,0.60394,68126.0,68125.0,2.002]
[1718072996578,0.59594,68126.0,68125.0,2.001]
[1718072996782,0.58694,68126.0,68125.0,2.001]
[1718072996989,0.5958,68126.0,68125.0,2.001]
[1718072997194,0.5958,68126.0,68125.0,2.002]
[1718072997195,0.6048,68126.0,68125.0,2.002]
[1718072997404,0.6048,68126.0,68125.0,2.41310793]
[1718072997617,0.6048,68126.0,68125.0,3.30510793]
[1718072998805,0.5958,68126.0,68125.0,3.30410793]
[1718072999113,0.5878,68126.0,68125.0,3.30610793]
[1718072999313,0.5878,68126.0,68125.0,3.30710793]
[1718072999734,0.5878,68126.0,68125.0,3.161788]
[1718073000150,0.5878,68126.0,68125.0,3.162788]
[1718073000358,0.5878,68126.0,68125.0,2.840488]
[1718073000558,0.5878,68126.0,68125.0,2.249788]
[1718073000773,0.5878,68126.0,68125.0,2.103]
[1718073000973,0.5878,68126.0,68125.0,2.007]
[1718073001742,0.73211993,68126.0,68125.0,2.007]
[1718073001959,1.63910593,68126.0,68125.0,1.46852793]
[1718073002164,1.381401,68119.0,68118.0,0.00017671]
[1718073002369,2.15446093,68119.0,68118.0,0.00017671]
[1718073002586,0.1964,68105.0,68096.0,0.43295979]
[1718073002792,0.1546,68103.0,68096.0,0.43295979]
[1718073003002,0.73125993,68102.0,68091.0,0.009427]
[1718073003203,0.2578,68100.0,68091.0,0.009427]
[1718073003423,0.73250352,68099.0,68091.0,0.009427]
[1718073003805,0.73125993,68099.0,68091.0,0.009427]